[Event "127th NZ Congress Major 2020"]
[Site "Tauranga"]
[Date "2020.01.19"]
[Round "6.5"]
[White "Zhang, Boyuan"]
[Black "Ashe, Michael"]
[Result "1/2-1/2"]
[ECO "C01"]
[WhiteElo "1588"]
[BlackElo "1460"]
[Annotator "NA RC"]
[PlyCount "44"]
[EventDate "2020.01.14"]
[EventType "swiss"]
[EventCountry "NZL"]
[SourceTitle "playchess.com"]
[Source "ChessBase"]
[SourceQuality "1"]
[TimeControl "40/5400+30:1800+30"]

1. e4 {[%emt 0:00:00]} e6 {[%emt 0:00:00]} 2. d4 {[%emt 0:00:00]} d5 {[%emt 0:00:00]} 3. exd5 {[%emt 0:00:00]} exd5 {[%emt 0:00:00]} 4. Bd3 {[%emt 0:00:00]} Nc6 {[%emt 0:00:13]} 5. Nf3 {[%emt 0:00:41]} Bd6 {[%emt 0:00:22]} 6. O-O {[%emt 0:00:32]} Nge7 {[%emt 0:00:18]} 7. c3 {[%emt 0:00:40]} O-O {[%emt 0:01:10]} 8. Bg5 {[%emt 0:01:43]} h6 {[%emt 0:02:36]} 9. Bh4 {[%emt 0:00:34]} Be6 {[%emt 0:01:24]} 10. Nbd2 {[%emt 0:01:26]} Qd7 {[%emt 0:03:27]} 11. Bg3 {[%emt 0:03:05]} Bxg3 {[%emt 0:02:56]} 12. fxg3 {[%emt 0:00:52]} Bf5 {[%emt 0:04:05]} 13. Ne1 {[%emt 0:02:16]} Bxd3 {[%emt 0:08:09]} 14. Nxd3 {[%emt 0:00:04]} b6 {[%emt 0:01:21]} 15. Nf3 {[%emt 0:03:19]} Ng6 {[%emt 0:02:36]} 16. Qd2 {[%emt 0:02:43]} Rfe8 {[%emt 0:04:05]} 17. Rae1 {[%emt 0:01:15]} Rxe1 {[%emt 0:00:24]} 18. Rxe1 {[%emt 0:00:44]} Re8 {[%emt 0:01:06]} 19. Nf4 {[%emt 0:03:54]} Rxe1+ {[%emt 0:02:11]} 20. Qxe1 {[%emt 0:01:14]} Nxf4 {[%emt 0:02:55]} 21. gxf4 {[%emt 0:00:47]} Qe7 {[%emt 0:01:44]} 22. Qxe7 {[%emt 0:04:44]} Nxe7 {[%emt 0:00:12]} 1/2-1/2

[Event "127th NZ Congress Major 2020"]
[Site "Tauranga"]
[Date "2020.01.20"]
[Round "7.1"]
[White "Gold, Hamish"]
[Black "Patterson, Miles"]
[Result "0-1"]
[ECO "C11"]
[WhiteElo "1683"]
[BlackElo "1954"]
[Annotator "NA"]
[PlyCount "50"]
[EventDate "2020.01.14"]
[EventType "swiss"]
[EventCountry "NZL"]
[SourceTitle "playchess.com"]
[Source "ChessBase"]
[SourceQuality "1"]
[TimeControl "40/5400+30:1800+30"]

{[%evp 15,46,59,59,-1,0,0,0,14,0,-26,-36,32767,32767,-95,-87,-106,-66,-115,-85,-166,32767,81,86,20,98,-42,-32,-347,-302,32767,-1066,-1660,-1435]} 1. e4 {[%emt 0:00:00]} e6 {[%emt 0:00:00]} 2. Nc3 {[%emt 0:00:44]} d5 {[%emt 0:00:00]} 3. Nf3 {[%emt 0:00:57]} Nf6 {[%emt 0:00:38]} 4. e5 {[%emt 0:01:54]} Nfd7 {[%emt 0:00:04]} 5. d4 {[%emt 0:02:28]} b6 {[%emt 0:02:57]} 6. Bg5 {[%emt 0:06:21] C11: French: Classical System: 4 e5 and 4 Bg5 dxe4} (6. Bd3 Ba6 7. O-O Be7 8. Ne2 Bxd3 9. Qxd3 c5 10. c4 Nc6 11. cxd5 Nb4 12. Qe4 Nxd5 13. Qg4 Kf8 {1-0 (31) Cawdery,D (2428)-Kasparov,S (2451) Port Elizabeth 2019}) 6... Be7 {[%emt 0:01:25]} 7. h4 {[%emt 0:02:07]} O-O {[%emt 0:07:30]} 8. Bd3 {[%emt 0:06:33]} f6 {[%emt 0:14:08]} 9. exf6 {[%emt 0:04:49]} Nxf6 {[%emt 0:01:17]} 10. Qe2 $146 {[%emt 0:05:07]} ({Predecessor:} 10. Ne5 c5 11. Bxf6 Rxf6 12. Qh5 h6 13. g4 cxd4 14. g5 dxc3 15. gxf6 Bxf6 16. Qf7+ Kh8 17. Ng6+ Kh7 18. Ne7+ {1-0 (18) Choobak,K-Gliksman,D (2270) Anaheim 1984}) 10... c5 {[%emt 0:02:41]} 11. Bxf6 {[%emt 0:07:32]} Rxf6 {[%emt 0:13:44]} 12. Ng5 {[%emt 0:15:26]} Rh6 {[%emt 0:01:30]} 13. f4 {[%emt 0:05:52]} Nc6 {[%emt 0:05:36]} 14. dxc5 {[%emt 0:03:16]} bxc5 {[%emt 0:00:18]} 15. O-O-O {[%emt 0:03:25]} Nd4 {[%emt 0:07:17]} 16. Qf2 {[%emt 0:03:13]} Bf6 {[%emt 0:02:24]} (16... Rb8 $142 17. b3 Qa5) 17. g4 {[%emt 0:01:27]} ({White should play} 17. Nb1 $1 $15) 17... Nc6 {[%emt 0:07:34]} 18. Nf3 {[%emt 0:03:39]} (18. Qxc5 $18 Qb6 19. Qxb6 axb6 20. Nge4 dxe4 21. Bxe4 Rxh4 22. Bxc6 Rxh1 23. Bxh1 (23. Rxh1 Ra7 $14)) 18... Bxc3 {[%emt 0:04:14]} 19. bxc3 {[%emt 0:00:31]} (19. Qxc5 $16 e5 20. Qxc3) 19... Qa5 {[%emt 0:01:47] [#]} (19... Rf6 $1 $11) 20. g5 {[%emt 0:01:35]} (20. Ne5 $1 $16 c4 21. g5 (21. Nxc6 Qa3+ 22. Kd2 cxd3 $11) 21... cxd3 22. gxh6 Qa3+ 23. Kd2) 20... Qxc3 {[%emt 0:02:49]} 21. gxh6 $4 {[%emt 0:01:17] [#]} (21. Qe1 $11 {and White has nothing to worry.} Qa3+ {[%mdl 64] Double Attack} 22. Kd2) 21... Nb4 $1 {[%emt 0:00:25]} 22. Bxh7+ {[%emt 0:04:50]} Kxh7 {[%emt 0:02:37]} 23. Ng5+ {[%emt 0:02:12]} Kg8 $19 {[%emt 0:00:32]} 24. h7+ {[%emt 0:00:34]} Kh8 {[%emt 0:00:06]} 25. Rde1 {[%emt 0:03:24]} Nd3+ {[%emt 0:00:19]} 0-1

[Event "127th NZ Congress Major 2020"]
[Site "Tauranga"]
[Date "2020.01.20"]
[Round "7.2"]
[White "Tang, Hao"]
[Black "Deng, Abraham"]
[Result "1-0"]
[ECO "A47"]
[WhiteElo "1624"]
[BlackElo "1558"]
[Annotator "NA"]
[PlyCount "119"]
[EventDate "2020.01.14"]
[EventType "swiss"]
[EventCountry "NZL"]
[SourceTitle "playchess.com"]
[Source "ChessBase"]
[SourceQuality "1"]
[TimeControl "40/5400+30:1800+30"]

1. d4 {[%emt 0:00:00]} Nf6 {[%emt 0:00:00]} 2. Nf3 {[%emt 0:00:00]} e6 {[%emt 0:00:00]} 3. Bf4 {[%emt 0:00:09]} b6 {[%emt 0:00:00]} 4. e3 {[%emt 0:00:12]} Bb7 {[%emt 0:00:00]} 5. Nbd2 {[%emt 0:00:45]} Be7 {[%emt 0:00:00]} 6. h3 {[%emt 0:00:10]} O-O {[%emt 0:00:13]} 7. Bd3 {[%emt 0:00:08]} c5 {[%emt 0:00:17]} 8. c3 {[%emt 0:00:08]} cxd4 {[%emt 0:00:10]} 9. cxd4 {[%emt 0:00:07]} d6 {[%emt 0:00:53]} 10. O-O {[%emt 0:00:11]} Nc6 {[%emt 0:00:37]} 11. Bg3 {[%emt 0:02:14]} Nb4 {[%emt 0:04:20]} 12. Bb1 {[%emt 0:01:43]} Ba6 {[%emt 0:06:20]} 13. Re1 {[%emt 0:01:11]} Nd3 {[%emt 0:01:48]} 14. Bxd3 {[%emt 0:01:29]} Bxd3 {[%emt 0:00:08]} 15. Qb3 {[%emt 0:02:29]} Ba6 {[%emt 0:01:15]} 16. e4 {[%emt 0:00:44]} Rc8 {[%emt 0:02:58]} 17. Qa4 {[%emt 0:05:45]} Bd3 {[%emt 0:03:41]} 18. Re3 {[%emt 0:06:40]} Bc2 {[%emt 0:06:53]} 19. Qxa7 {[%emt 0:04:10]} Ra8 {[%emt 0:01:54]} 20. Qb7 {[%emt 0:00:10]} Ba4 {[%emt 0:01:53]} 21. Rc3 {[%emt 0:05:32]} d5 {[%emt 0:13:13]} 22. Bc7 {[%emt 0:01:52]} Qd7 {[%emt 0:03:31]} 23. e5 {[%emt 0:02:38]} Ne8 {[%emt 0:02:22]} 24. Qxa8 {[%emt 0:00:22]} Nxc7 {[%emt 0:00:18]} 25. Qa7 {[%emt 0:04:36]} Bd8 {[%emt 0:05:32]} 26. Rac1 {[%emt 0:01:07]} Ne8 {[%emt 0:09:45]} 27. Qxd7 {[%emt 0:00:33]} Bxd7 {[%emt 0:00:05]} 28. a3 {[%emt 0:06:39]} g6 {[%emt 0:01:08]} 29. b4 {[%emt 0:00:54]} Ng7 {[%emt 0:00:40]} 30. Ra1 {[%emt 0:01:44]} Ba4 {[%emt 0:02:16]} 31. Rc8 {[%emt 0:00:50]} Nf5 {[%emt 0:01:26]} 32. Nb1 {[%emt 0:02:17]} b5 {[%emt 0:04:20]} 33. Nc3 {[%emt 0:04:22]} Bb6 {[%emt 0:00:51]} 34. Nxa4 {[%emt 0:02:17]} bxa4 {[%emt 0:00:21]} 35. Rxf8+ {[%emt 0:02:16]} Kxf8 {[%emt 0:00:05]} 36. Rd1 {[%emt 0:00:17]} h6 {[%emt 0:00:42]} 37. g4 {[%emt 0:00:36]} Ne7 {[%emt 0:00:13]} 38. Rc1 {[%emt 0:00:12]} Ke8 {[%emt 0:00:21]} 39. Kf1 {[%emt 0:00:50]} Kd7 {[%emt 0:00:26]} 40. Ke2 {[%emt 0:00:00]} Nc6 {[%emt 0:00:00]} 41. Kd3 {[%emt 0:01:39]} Na7 {[%emt 0:01:55]} 42. Ne1 {[%emt 0:04:33]} Nb5 {[%emt 0:01:40]} 43. Nc2 {[%emt 0:00:28]} Ba7 {[%emt 0:01:07]} 44. f4 {[%emt 0:00:20]} Bb6 {[%emt 0:01:51]} 45. Rf1 {[%emt 0:00:40]} Bd8 {[%emt 0:02:41]} 46. f5 {[%emt 0:01:01]} Ke8 {[%emt 0:03:15]} 47. fxe6 {[%emt 0:02:46]} fxe6 {[%emt 0:00:57]} 48. Ne3 {[%emt 0:01:08]} Be7 {[%emt 0:00:57]} 49. Ra1 {[%emt 0:00:47]} Kd7 {[%emt 0:01:06]} 50. Nd1 {[%emt 0:00:20]} Kc6 {[%emt 0:03:26]} 51. Nb2 {[%emt 0:01:05]} Bd8 {[%emt 0:03:02]} 52. Nxa4 {[%emt 0:00:24]} Kd7 {[%emt 0:00:54]} 53. Nc5+ {[%emt 0:00:31]} Ke7 {[%emt 0:00:19]} 54. a4 {[%emt 0:00:21]} Na7 {[%emt 0:00:23]} 55. b5 {[%emt 0:00:51]} Ba5 {[%emt 0:01:17]} 56. Rf1 {[%emt 0:00:43]} Bb6 {[%emt 0:01:17]} 57. Rf6 {[%emt 0:00:31]} Bxc5 {[%emt 0:00:22]} 58. dxc5 {[%emt 1:02:33]} h5 {[%emt 0:01:21]} 59. Rxg6 {[%emt 0:00:00]} Kf7 {[%emt 0:00:00]} 60. gxh5 {[%emt 0:01:00]} 1-0

[Event "127th NZ Congress Major 2020"]
[Site "Tauranga"]
[Date "2020.01.20"]
[Round "7.3"]
[White "Perrin, Brent"]
[Black "Dai, Oliver"]
[Result "1-0"]
[ECO "B12"]
[WhiteElo "1804"]
[BlackElo "1737"]
[Annotator "NA"]
[PlyCount "55"]
[EventDate "2020.01.14"]
[EventType "swiss"]
[EventCountry "NZL"]
[SourceTitle "playchess.com"]
[Source "ChessBase"]
[SourceQuality "1"]
[TimeControl "40/5400+30:1800+30"]

{[%evp 8,48,83,81,78,32767,32767,32767,32767,32767,32767,32767,32767,32767,32767,32767,32767,32767,32767,503,493,539,525,529,891,892,995,844,934,981,823,793,861,32767,32767,32767,32767,827,916,879,953,982,1382]} 1. e4 {[%emt 0:00:00]} c6 {[%emt 0:00:00]} 2. d4 {[%emt 0:00:00]} d5 {[%emt 0:00:00]} 3. f3 {[%emt 0:00:00]} dxe4 {[%emt 0:00:28]} 4. fxe4 {[%emt 0:00:00]} g6 {[%emt 0:01:14]} (4... e5 5. Nf3 Bg4 6. Bc4 Nd7 7. c3 b5 8. Bb3 Ngf6 9. O-O Bd6 10. Bg5 O-O 11. Nbd2 h6 12. Bh4 Qc7 13. Qe1 Rae8 14. dxe5 Bxe5 15. Nxe5 Qxe5 {½-½ (34) Paravyan,D (2629)-Wojtaszek,R (2725) Moscow 2019}) 5. Nf3 {[%emt 0:01:05]} Bg7 {[%emt 0:00:16]} 6. Bc4 {[%emt 0:01:53] B12: Caro-Kann: Advance Variation} e6 {[%emt 0:01:49]} 7. O-O {[%emt 0:03:02]} Ne7 {[%emt 0:02:35]} 8. Bf4 $146 {[%emt 0:03:33]} ({Predecessor:} 8. c3 b5 9. Bb3 Nd7 10. Ng5 O-O 11. Nxf7 Qc7 12. Bxe6 {1-0 (37) Duch,M (2275)-Arnold,R Plock 1994}) 8... O-O {[%emt 0:01:16]} 9. c3 {[%emt 0:00:19]} b6 {[%emt 0:03:27]} 10. Nbd2 {[%emt 0:01:07]} Bb7 {[%emt 0:03:43]} 11. Qe1 {[%emt 0:01:14]} Nd7 {[%emt 0:03:05]} 12. Qh4 {[%emt 0:03:34]} c5 {[%emt 0:07:31]} 13. Ng5 {[%emt 0:16:28]} h5 {[%emt 0:04:59] [#]} 14. Nxf7 $1 {[%emt 0:03:15]} Rxf7 {[%emt 0:00:28]} 15. Bxe6 {[%emt 0:01:02]} Kh7 {[%emt 0:06:58]} 16. Bxf7 {[%emt 0:01:48]} cxd4 {[%emt 0:00:49]} 17. Bg5 {[%emt 0:02:01]} Ne5 {[%emt 0:03:19]} 18. Bxe7 {[%emt 0:03:37]} Qd7 {[%emt 0:00:14]} 19. c4 {[%emt 0:05:59] Remove Defender} d3 {[%emt 0:05:32]} 20. Bd5 {[%emt 0:08:36]} Ng4 {[%emt 0:01:51]} 21. Bf6 {[%emt 0:02:55]} Bxd5 {[%emt 0:01:19]} 22. Bxg7 {[%emt 0:00:49]} Qxg7 {[%emt 0:03:26]} 23. cxd5 {[%emt 0:02:34]} Qd4+ {[%emt 0:02:49]} 24. Kh1 {[%emt 0:00:16]} Re8 $18 {[%emt 0:04:28]} 25. h3 {[%emt 0:01:54]} Ne5 {[%emt 0:04:33]} 26. Rac1 {[%emt 0:04:35]} Qe3 {[%emt 0:02:07]} 27. Rc7+ {[%emt 0:01:18]} Kg8 {[%emt 0:01:00]} 28. Qf6 {[%emt 0:01:07]} 1-0

[Event "127th NZ Congress Major 2020"]
[Site "Tauranga"]
[Date "2020.01.21"]
[Round "8.1"]
[White "Patterson, Miles"]
[Black "Knightbridge, Wayne"]
[Result "1-0"]
[ECO "A14"]
[WhiteElo "1954"]
[BlackElo "1676"]
[Annotator "NA RC"]
[PlyCount "37"]
[EventDate "2020.01.14"]
[EventType "swiss"]
[EventCountry "NZL"]
[SourceTitle "playchess.com"]
[Source "ChessBase"]
[SourceQuality "1"]
[TimeControl "40/5400+30:1800+30"]

{[%evp 11,33,-9,42,34,32767,32767,32767,63,32767,32767,32767,32767,32767,32767,125,134,146,148,295,124,115,127,586,605]} 1. c4 {[%emt 0:00:00]} Nf6 {[%emt 0:00:00]} 2. Nf3 {[%emt 0:00:00]} e6 {[%emt 0:00:19]} 3. g3 {[%emt 0:00:15]} d5 {[%emt 0:01:04]} 4. Bg2 {[%emt 0:00:10]} Be7 {[%emt 0:05:52]} 5. O-O {[%emt 0:00:08]} O-O {[%emt 0:00:05]} 6. d3 {[%emt 0:01:57]} dxc4 {[%emt 0:01:59]} 7. dxc4 {[%emt 0:00:07]} Qxd1 {[%emt 0:00:24]} 8. Rxd1 {[%emt 0:00:05]} Nc6 {[%emt 0:09:07]} 9. Bf4 {[%emt 0:02:45]} Nb4 {[%emt 0:02:03]} 10. Nc3 {[%emt 0:00:50]} c6 {[%emt 0:03:18]} 11. a3 {[%emt 0:00:23]} Na6 {[%emt 0:01:01]} 12. b4 {[%emt 0:01:59]} Rd8 {[%emt 0:13:34]} 13. Rxd8+ {[%emt 0:03:47]} Bxd8 {[%emt 0:00:07]} 14. Rd1 {[%emt 0:00:21]} Bd7 {[%emt 0:01:50] [#]} (14... Be7 $142 15. Ne5 h6) 15. Ne5 {[%emt 0:01:08]} (15. Ne4 $1 $18 {[%cal Re4f6][%mdl 512] and the rest is easy.} Be8 (15... Nxe4 16. Rxd7) 16. Nd6) 15... Be8 {[%emt 0:01:00]} 16. b5 {[%emt 0:03:54]} cxb5 $2 {[%emt 0:00:11]} (16... Nc5 $16 {is tougher.}) 17. Bxb7 $18 {[%emt 0:00:19] Double Attack} Rb8 {[%emt 0:04:07]} 18. Bxa6 {[%emt 0:00:19]} bxc4 {[%emt 0:00:17]} 19. Nxc4 {[%emt 0:00:30]} 1-0

[Event "127th NZ Congress Major 2020"]
[Site "Tauranga"]
[Date "2020.01.21"]
[Round "8.3"]
[White "Perrin, Brent"]
[Black "Gold, Hamish"]
[Result "1-0"]
[ECO "B22"]
[WhiteElo "1804"]
[BlackElo "1683"]
[Annotator "NA RC"]
[PlyCount "85"]
[EventDate "2020.01.14"]
[EventType "swiss"]
[EventCountry "NZL"]
[SourceTitle "playchess.com"]
[Source "ChessBase"]
[SourceQuality "1"]
[TimeControl "40/5400+30:1800+30"]

{[%evp 14,65,15,32767,32767,32767,32767,-6,32767,8,29,16,29,20,33,33,38,24,60,32767,55,66,59,58,70,27,64,66,158,157,153,168,168,193,167,183,195,127,127,127,126,124,123,119,122,116,120,118,115,110,32767,32767,32767,122]} 1. e4 {[%emt 0:00:00]} c5 {[%emt 0:00:26]} 2. c3 {[%emt 0:00:09]} d5 {[%emt 0:00:53]} 3. exd5 {[%emt 0:00:07]} Qxd5 {[%emt 0:00:17]} 4. d4 {[%emt 0:00:09]} Nf6 {[%emt 0:01:23]} 5. Nf3 {[%emt 0:01:09]} Bg4 {[%emt 0:00:58]} 6. Be2 {[%emt 0:00:23]} Nc6 {[%emt 0:01:26]} 7. Be3 {[%emt 0:00:37]} e6 {[%emt 0:03:49]} 8. O-O {[%emt 0:02:32]} Be7 {[%emt 0:01:01] B22: Sicilian: 2 c3} 9. Na3 {[%emt 0:11:31]} cxd4 {[%emt 0:02:26]} 10. Nb5 {[%emt 0:05:59]} Qd7 {[%emt 0:05:17]} 11. Nbxd4 {[%emt 0:00:53]} Nxd4 {[%emt 0:03:49]} 12. Bxd4 {[%emt 0:02:07]} O-O {[%emt 0:06:27]} 13. h3 {[%emt 0:11:25]} Bxf3 $146 {[%emt 0:04:11]} ({Predecessor:} 13... Bh5 14. Ne5 Bxe2 15. Nxd7 Bxd1 16. Nxf6+ gxf6 17. Raxd1 {0-1 (75) Richter,K (2120)-Schebler,G (2450) Dortmund 1998}) 14. Bxf3 {[%emt 0:00:23]} Qc7 {[%emt 0:06:38]} 15. Qe2 {[%emt 0:05:23]} a6 {[%emt 0:02:54]} 16. Rfd1 {[%emt 0:02:53]} Rad8 {[%emt 0:04:07]} 17. a4 {[%emt 0:03:27]} Rd7 {[%emt 0:08:21]} 18. a5 {[%emt 0:01:31]} Nd5 {[%emt 0:06:55]} 19. Be4 {[%emt 0:11:24]} ({White should play} 19. c4 $16 Nb4 20. Be5 Rxd1+ 21. Rxd1) 19... Nf6 {[%emt 0:08:52]} 20. Bb6 {[%emt 0:01:40]} Qb8 {[%emt 0:05:34]} (20... Rxd1+ $14 21. Rxd1 Qc8) 21. Rxd7 {[%emt 0:00:59]} Nxd7 {[%emt 0:00:14] [#]} 22. Bxh7+ $1 {[%emt 0:04:21]} Kxh7 {[%emt 0:02:54]} 23. Qd3+ {[%emt 0:00:12] Double Attack} Kg8 {[%emt 0:00:28]} 24. Qxd7 {[%emt 0:00:08]} Bg5 {[%emt 0:02:09]} 25. Qc7 {[%emt 0:06:42]} Qxc7 {[%emt 0:00:55]} 26. Bxc7 {[%emt 0:00:06]} Rc8 {[%emt 0:00:14]} 27. Bb6 {[%emt 0:00:21]} Kf8 {[%emt 0:02:45]} 28. Rd1 {[%emt 0:00:28]} Ke7 {[%emt 0:00:27]} 29. f3 {[%emt 0:00:30]} Bf4 {[%emt 0:00:46]} 30. Kf1 {[%emt 0:02:49]} Bd6 {[%emt 0:01:27]} 31. Rd3 {[%emt 0:03:23]} Kd7 {[%emt 0:00:52]} 32. Ke2 {[%emt 0:01:14]} Kc6 {[%emt 0:03:07]} 33. b4 $16 {[%emt 0:01:38]} Rh8 {[%emt 0:03:36]} 34. Bd4 {[%emt 0:05:56]} e5 {[%emt 0:01:24]} 35. Bf2 {[%emt 0:00:23]} f5 {[%emt 0:01:14]} 36. Be1 {[%emt 0:01:35]} Re8 {[%emt 0:01:36]} 37. c4 {[%emt 0:01:30]} e4 {[%emt 0:00:31]} 38. Rd1 {[%emt 0:06:58]} e3 {[%emt 0:02:57]} 39. Rd5 {[%emt 0:03:48]} f4 {[%emt 0:00:35]} 40. Rg5 {[%emt 0:00:00]} Re7 {[%emt 0:00:00]} 41. Bc3 {[%emt 0:04:55]} Rd7 {[%emt 0:03:06]} 42. Rg6 {[%emt 0:02:11]} Kc7 {[%emt 0:00:40]} 43. c5 {[%emt 0:02:48]} 1-0

[Event "127th NZ Congress Major 2020"]
[Site "Tauranga"]
[Date "2020.01.21"]
[Round "8.4"]
[White "Zhang, Boyuan"]
[Black "Dai, Oliver"]
[Result "0-1"]
[ECO "B11"]
[WhiteElo "1588"]
[BlackElo "1737"]
[Annotator "NA RC"]
[PlyCount "64"]
[EventDate "2020.01.14"]
[EventType "swiss"]
[EventCountry "NZL"]
[SourceTitle "playchess.com"]
[Source "ChessBase"]
[SourceQuality "1"]
[TimeControl "40/5400+30:1800+30"]

1. e4 {[%emt 0:00:01]} c6 {[%emt 0:00:00]} 2. Nc3 {[%emt 0:00:00]} d5 {[%emt 0:00:00]} 3. Nf3 {[%emt 0:00:00]} Bg4 {[%emt 0:00:00]} 4. h3 {[%emt 0:00:22]} Bxf3 {[%emt 0:00:00]} 5. Qxf3 {[%emt 0:01:06]} e6 {[%emt 0:00:09]} 6. exd5 {[%emt 0:03:15]} cxd5 {[%emt 0:02:06]} 7. Bb5+ {[%emt 0:03:45]} Nc6 {[%emt 0:00:22]} 8. O-O {[%emt 0:02:00]} Nf6 {[%emt 0:00:48]} 9. d4 {[%emt 0:04:06]} Be7 {[%emt 0:00:31]} 10. Ne2 {[%emt 0:03:56]} O-O {[%emt 0:00:28]} 11. c3 {[%emt 0:00:39]} a6 {[%emt 0:03:10]} 12. Bxc6 {[%emt 0:06:15]} bxc6 {[%emt 0:00:06]} 13. Bg5 {[%emt 0:01:58]} Rb8 {[%emt 0:02:01]} 14. Rfb1 {[%emt 0:09:25]} a5 {[%emt 0:04:20]} 15. Nf4 {[%emt 0:08:30]} Ne4 {[%emt 0:02:30]} 16. Bxe7 {[%emt 0:01:27]} Qxe7 {[%emt 0:00:05]} 17. Qe3 {[%emt 0:01:07]} Rb6 {[%emt 0:07:48]} 18. f3 {[%emt 0:03:57]} Nd6 {[%emt 0:00:39]} 19. b3 {[%emt 0:03:43]} Nf5 {[%emt 0:07:12]} 20. Qe1 {[%emt 0:04:04]} Qf6 {[%emt 0:04:23]} 21. Nd3 {[%emt 0:01:29]} Rb5 {[%emt 0:02:56]} 22. Ne5 {[%emt 0:02:41]} Rc8 {[%emt 0:05:23]} 23. a4 {[%emt 0:02:17]} Rb7 {[%emt 0:00:10]} 24. b4 {[%emt 0:03:22]} axb4 {[%emt 0:02:04]} 25. Qf2 {[%emt 0:05:46]} Qe7 {[%emt 0:02:54]} 26. Qb2 {[%emt 0:03:00]} c5 {[%emt 0:05:03]} 27. Nd3 {[%emt 0:01:45]} cxd4 {[%emt 0:01:52]} 28. cxd4 {[%emt 0:00:15]} Rc4 {[%emt 0:04:12]} 29. Nc5 {[%emt 0:01:36]} Rb8 {[%emt 0:02:59]} 30. Nb3 {[%emt 0:01:10]} Qf6 {[%emt 0:01:57]} 31. Rd1 {[%emt 0:01:32]} Ne3 {[%emt 0:00:25]} 32. Rd3 {[%emt 0:01:16]} Rc2 {[%emt 0:01:15]} 0-1

[Event "127th NZ Congress Major 2020"]
[Site "Tauranga"]
[Date "2020.01.22"]
[Round "9.2"]
[White "Tang, Hao"]
[Black "Pakenham, John"]
[Result "1-0"]
[ECO "A80"]
[WhiteElo "1624"]
[BlackElo "1624"]
[Annotator "NA RC"]
[PlyCount "75"]
[EventDate "2020.01.14"]
[EventType "swiss"]
[EventCountry "NZL"]
[SourceTitle "playchess.com"]
[Source "ChessBase"]
[SourceQuality "1"]
[TimeControl "40/5400+30:1800+30"]

1. d4 {[%emt 1:30:30]} e6 {[%emt 0:00:00]} 2. Nf3 {[%emt 0:00:00]} f5 {[%emt 0:00:11]} 3. Bf4 {[%emt 0:00:00]} Nf6 {[%emt 0:00:39]} 4. e3 {[%emt 0:00:00]} b6 {[%emt 0:01:10]} 5. Be2 {[%emt 0:00:00]} Bb7 {[%emt 0:00:43]} 6. O-O {[%emt 0:00:00]} Be7 {[%emt 0:02:02]} 7. h3 {[%emt 0:00:00]} O-O {[%emt 0:00:55]} 8. c4 {[%emt 0:00:00]} Na6 {[%emt 0:03:39]} 9. a3 {[%emt 0:00:00]} c5 {[%emt 0:03:30]} 10. Nc3 {[%emt 0:00:00]} Nc7 {[%emt 0:03:43]} 11. Ne5 {[%emt 0:00:00]} d6 {[%emt 0:01:42]} 12. Nf3 {[%emt 0:00:00]} Qd7 {[%emt 0:00:51]} 13. dxc5 {[%emt 0:00:00]} bxc5 {[%emt 0:00:47]} 14. b4 {[%emt 0:00:00]} cxb4 {[%emt 0:01:23]} 15. axb4 {[%emt 0:00:00]} a6 {[%emt 0:02:16]} 16. Qb3 {[%emt 0:00:00]} Kh8 {[%emt 0:00:53]} 17. Rfd1 {[%emt 0:00:00]} Bxf3 {[%emt 0:06:04]} 18. Bxf3 {[%emt 0:00:00]} Rab8 {[%emt 0:00:37]} 19. c5 {[%emt 0:00:00]} d5 {[%emt 0:02:02]} 20. Na4 {[%emt 0:00:00]} Qc6 {[%emt 0:09:23]} 21. Nb6 {[%emt 0:00:00]} Nfe8 {[%emt 0:04:51]} 22. Be2 {[%emt 0:00:00]} Bf6 {[%emt 0:01:52]} 23. Ra5 {[%emt 0:00:00]} e5 {[%emt 0:00:50]} 24. Bh2 {[%emt 0:00:00]} Rd8 {[%emt 0:01:02]} 25. Bxa6 {[%emt 0:00:00]} Nxa6 {[%emt 0:01:23]} 26. Rxa6 {[%emt 0:00:00]} Nc7 {[%emt 0:00:17]} 27. Ra2 {[%emt 0:00:00]} d4 {[%emt 0:02:30]} 28. exd4 {[%emt 0:00:00]} exd4 {[%emt 0:01:07]} 29. Qd3 {[%emt 0:00:00]} Nb5 {[%emt 0:01:14]} 30. Rc1 {[%emt 0:00:00]} g6 {[%emt 0:00:36]} 31. Nc4 {[%emt 0:00:00]} Rfe8 {[%emt 0:01:12]} 32. Nd6 {[%emt 0:00:00]} Nxd6 {[%emt 0:00:44]} 33. Bxd6 {[%emt 0:00:00]} Rxd6 {[%emt 0:00:33]} 34. b5 {[%emt 0:00:00]} Qc8 {[%emt 0:02:52]} 35. c6 {[%emt 0:01:17]} Bd8 {[%emt 0:01:24]} 36. c7 {[%emt 0:03:04]} Bf6 {[%emt 0:02:50]} 37. Rac2 {[%emt 0:04:26]} Qb7 {[%emt 0:02:28]} 38. c8=Q {[%emt 0:01:21]} 1-0